fUSD/lending_fUSD_20260517
["ID","MTS","AMOUNT","RATE_DAILY","PERIOD"]
[422475483,1778981442000,-240.24,0.0002863,2]
[422475487,1778981442000,-269.44,0.0002863,2]
[422475489,1778981442000,-1910.31,0.0002863,2]
[422475475,1778981442000,-1250.0,0.000285,2]
[422475488,1778981442000,-487.51,0.0002863,2]
[422475568,1778981443000,-269.44,0.00028915,2]
[422475564,1778981443000,-476.74,0.00028915,2]
[422475556,1778981443000,-476.74,0.00028883,30]
[422475567,1778981443000,-1071.63,0.00028915,2]
[422475569,1778981443000,-487.51,0.00028915,2]
[422475565,1778981443000,-240.24,0.00028915,2]
[422475558,1778981443000,-1750.96,0.00028883,30]
[422475563,1778981443000,-997.24,0.00028915,2]
[422475561,1778981443000,-487.51,0.00028883,30]
[422475560,1778981443000,-269.44,0.00028883,30]
[422475562,1778981443000,-1910.31,0.00028883,30]
[422475559,1778981443000,-1071.63,0.00028883,30]
[422475566,1778981443000,-1750.96,0.00028915,2]
[422475571,1778981443000,-997.24,0.00028947,7]
[422475588,1778981443000,-487.51,0.00028979,30]
[422475573,1778981443000,-476.74,0.00028947,7]
[422475584,1778981443000,-1071.63,0.00028979,30]
[422475586,1778981443000,-269.44,0.00028979,30]
[422475572,1778981443000,-240.24,0.00028947,7]
[422475575,1778981443000,-1071.63,0.00028947,7]
[422475574,1778981443000,-1750.96,0.00028947,7]
[422475576,1778981443000,-269.44,0.00028947,7]
[422475577,1778981443000,-487.51,0.00028947,7]
[422475582,1778981443000,-1750.96,0.00028979,30]
[422475581,1778981443000,-476.74,0.00028979,30]
[422475578,1778981443000,-1910.31,0.00028947,7]
[422475580,1778981443000,-240.24,0.00028979,30]
[422475579,1778981443000,-997.24,0.00028979,30]
[422475557,1778981443000,-240.24,0.00028883,30]
[422475570,1778981443000,-1910.31,0.00028915,2]
[422475553,1778981443000,-487.51,0.00028852,7]
[422475530,1778981443000,-240.24,0.00028788,30]
[422475554,1778981443000,-1910.31,0.00028852,7]
[422475520,1778981443000,-476.74,0.00028756,7]
[422475521,1778981443000,-240.24,0.00028756,7]
[422475525,1778981443000,-487.51,0.00028756,7]
[422475522,1778981443000,-1750.96,0.00028756,7]
[422475523,1778981443000,-1071.63,0.00028756,7]
[422475524,1778981443000,-269.44,0.00028756,7]
[422475527,1778981443000,-150.0,0.00028767,30]
[422475526,1778981443000,-1910.31,0.00028756,7]
[422475529,1778981443000,-476.74,0.00028788,30]
[422475528,1778981443000,-997.24,0.00028788,30]
[422475531,1778981443000,-1750.96,0.00028788,30]
[422475532,1778981443000,-1071.63,0.00028788,30]
[422475533,1778981443000,-269.44,0.00028788,30]
[422475534,1778981443000,-487.51,0.00028788,30]
[422475536,1778981443000,-1910.31,0.00028788,30]
[422475538,1778981443000,-208.44072055,0.000288,30]
[422475540,1778981443000,-476.74,0.0002882,2]
[422475542,1778981443000,-1750.96,0.0002882,2]
[422475541,1778981443000,-240.24,0.0002882,2]
[422475544,1778981443000,-269.44,0.0002882,2]
[422475543,1778981443000,-1071.63,0.0002882,2]
[422475545,1778981443000,-487.51,0.0002882,2]
[422475547,1778981443000,-997.24,0.00028852,7]
[422475548,1778981443000,-240.24,0.00028852,7]
[422475546,1778981443000,-1910.31,0.0002882,2]
[422475549,1778981443000,-476.74,0.00028852,7]
[422475552,1778981443000,-269.44,0.00028852,7]
[422475551,1778981443000,-1071.63,0.00028852,7]
[422475550,1778981443000,-1750.96,0.00028852,7]
[422475555,1778981443000,-997.24,0.00028883,30]
[422475590,1778981443000,-1910.31,0.00028979,30]
[422475539,1778981443000,-997.24,0.0002882,2]
[422475603,1778981443000,-476.74,0.00029042,7]
[422475625,1778981443000,-1910.31,0.00029105,2]
[422475628,1778981443000,-240.24,0.00029137,7]
[422475631,1778981443000,-269.44,0.00029137,7]
[422475642,1778981443000,-997.24,0.00029201,2]
[422475643,1778981443000,-476.74,0.00029201,2]
[422475640,1778981443000,-487.51,0.00029169,30]
[422475635,1778981443000,-476.74,0.00029169,30]
[422475638,1778981443000,-1071.63,0.00029169,30]
[422475634,1778981443000,-997.24,0.00029169,30]
[422475636,1778981443000,-240.24,0.00029169,30]
[422475633,1778981443000,-1910.31,0.00029137,7]
[422475637,1778981443000,-1750.96,0.00029169,30]
[422475639,1778981443000,-269.44,0.00029169,30]
[422475641,1778981443000,-1910.31,0.00029169,30]
[422475627,1778981443000,-476.74,0.00029137,7]
[422475632,1778981443000,-487.51,0.00029137,7]
[422475649,1778981443000,-1910.31,0.00029201,2]
[422475648,1778981443000,-487.51,0.00029201,2]
[422475651,1778981443000,-151.30985411,0.00029223,7]
[422475650,1778981443000,-168.22079103,0.00029223,7]
[422475652,1778981443000,-176.99812295,0.00029223,7]
[422475656,1778981443000,-476.74,0.00029232,7]
[422475647,1778981443000,-269.44,0.00029201,2]
[422475645,1778981443000,-1750.96,0.00029201,2]
[422475646,1778981443000,-1071.63,0.00029201,2]
[422475657,1778981443000,-240.43,0.00029232,7]
[422475655,1778981443000,-997.33,0.00029232,7]
[422475653,1778981443000,-153.1829813,0.00029223,2]
[422475658,1778981443000,-1751.0,0.00029232,7]
[422475604,1778981443000,-240.24,0.00029042,7]
[422475644,1778981443000,-240.24,0.00029201,2]
[422475626,1778981443000,-997.24,0.00029137,7]
[422475654,1778981443000,-154.57234443,0.00029223,7]
[422475619,1778981443000,-476.74,0.00029105,2]
[422475629,1778981443000,-1750.96,0.00029137,7]
[422475592,1778981443000,-215.03962261,0.00029,7]
[422475594,1778981443000,-997.24,0.0002901,2]
[422475596,1778981443000,-240.24,0.0002901,2]
[422475598,1778981443000,-1071.63,0.0002901,2]
[422475597,1778981443000,-1750.96,0.0002901,2]
[422475600,1778981443000,-487.51,0.0002901,2]
[422475602,1778981443000,-997.24,0.00029042,7]
[422475601,1778981443000,-1910.31,0.0002901,2]
[422475599,1778981443000,-269.44,0.0002901,2]
[422475605,1778981443000,-1750.96,0.00029042,7]
[422475606,1778981443000,-1071.63,0.00029042,7]
[422475608,1778981443000,-487.51,0.00029042,7]
[422475607,1778981443000,-269.44,0.00029042,7]
[422475612,1778981443000,-240.24,0.00029074,30]
[422475595,1778981443000,-476.74,0.0002901,2]
[422475609,1778981443000,-1910.31,0.00029042,7]
[422475624,1778981443000,-487.51,0.00029105,2]
[422475611,1778981443000,-476.74,0.00029074,30]
[422475623,1778981443000,-269.44,0.00029105,2]
[422475621,1778981443000,-1750.96,0.00029105,2]
[422475618,1778981443000,-997.24,0.00029105,2]
[422475620,1778981443000,-240.24,0.00029105,2]
[422475622,1778981443000,-1071.63,0.00029105,2]
[422475616,1778981443000,-487.51,0.00029074,30]
[422475610,1778981443000,-997.24,0.00029074,30]
[422475613,1778981443000,-1750.96,0.00029074,30]
[422475617,1778981443000,-1910.31,0.00029074,30]
[422475630,1778981443000,-1071.63,0.00029137,7]
[422475614,1778981443000,-1071.63,0.00029074,30]
[422475615,1778981443000,-269.44,0.00029074,30]
[422475701,1778981444000,-514.0,0.00029807,4]
[422475693,1778981444000,-1950.0,0.00029784,2]
[422475691,1778981444000,-1950.0,0.00029784,2]
[422475694,1778981444000,-1950.0,0.00029784,2]
[422475695,1778981444000,-1873.0,0.00029784,2]
[422475697,1778981444000,-1000.0,0.0002979,7]
[422475699,1778981444000,-1000.0,0.00029794,7]
[422475688,1778981444000,-1950.0,0.00029784,2]
[422475698,1778981444000,-1000.0,0.00029792,7]
[422475704,1778981444000,-1000.0,0.00029868,7]
[422475702,1778981444000,-603.78610069,0.00029808,7]
[422475689,1778981444000,-1950.0,0.00029784,2]
[422475696,1778981444000,-1000.0,0.00029785,7]
[422475707,1778981444000,-1000.0,0.00029916,7]
[422475700,1778981444000,-1000.0,0.00029805,7]
[422475705,1778981444000,-1000.0,0.0002987,7]
[422475717,1778981444000,-7577.15548257,0.0003,2]
[422475708,1778981444000,-1000.0,0.00029927,7]
[422475718,1778981444000,-1000.0,0.00030011,7]
[422475719,1778981444000,-150.0,0.00030035,2]
[422475706,1778981444000,-1000.0,0.000299,7]
[422475709,1778981444000,-500.0,0.00029999,2]
[422475710,1778981444000,-184.71091936,0.00029999,2]
[422475713,1778981444000,-436.79166081,0.00029999,2]
[422475687,1778981444000,-1950.0,0.00029784,2]
[422475716,1778981444000,-4951.77614638,0.0003,2]
[422475703,1778981444000,-1000.0,0.00029852,7]
[422475690,1778981444000,-1950.0,0.00029784,2]
[422475672,1778981444000,-841.03,0.000296,7]
[422475686,1778981444000,-1950.0,0.00029784,2]
[422475712,1778981444000,-500.0,0.00029999,2]
[422475670,1778981444000,-150.0,0.00029534,2]
[422475660,1778981444000,-269.44,0.00029232,7]
[422475659,1778981444000,-1071.65,0.00029232,7]
[422475671,1778981444000,-9917.0597317,0.00029586,2]
[422475662,1778981444000,-1910.45,0.00029232,7]
[422475665,1778981444000,-203.0,0.0002933,10]
[422475666,1778981444000,-287.0,0.00029432,2]
[422475663,1778981444000,-514.0,0.00029273,4]
[422475661,1778981444000,-487.62,0.00029232,7]
[422475664,1778981444000,-151.95429224,0.00029282,30]
[422475667,1778981444000,-150.0,0.00029432,2]
[422475692,1778981444000,-1950.0,0.00029784,2]
[422475669,1778981444000,-152.0,0.00029458,3]
[422475674,1778981444000,-2000.0,0.00029668,2]
[422475675,1778981444000,-2000.0,0.00029668,2]
[422475679,1778981444000,-2000.0,0.00029668,2]
[422475680,1778981444000,-2000.0,0.00029668,2]
[422475677,1778981444000,-2000.0,0.00029668,2]
[422475678,1778981444000,-2000.0,0.00029668,2]
[422475676,1778981444000,-2000.0,0.00029668,2]
[422475681,1778981444000,-2000.0,0.00029668,2]
[422475682,1778981444000,-2000.0,0.00029668,2]
[422475684,1778981444000,-1000.0,0.00029743,7]
[422475683,1778981444000,-1000.0,0.00029739,7]
[422475685,1778981444000,-1000.0,0.00029778,7]
[422475673,1778981444000,-2000.0,0.00029668,2]
[422475715,1778981444000,-183.87444839,0.00029999,2]
[422475668,1778981444000,-247.0,0.00029432,2]
[422475721,1778981444000,-774.27892593,0.000301,2]
[422475754,1778981444000,-200.0,0.00030437,2]
[422475753,1778981444000,-200.0,0.00030437,2]
[422475755,1778981444000,-193.63569993,0.00030479,16]
[422475757,1778981444000,-158.81822993,0.00030583,7]
[422475756,1778981444000,-159.11707341,0.00030583,7]
[422475759,1778981444000,-302.61970822,0.00030584,7]
[422475760,1778981444000,-353.99624591,0.00030584,7]
[422475758,1778981444000,-336.44158206,0.00030584,7]
[422475763,1778981444000,-2000.0,0.00030589,7]
[422475764,1778981444000,-836.0,0.00030589,7]
[422475761,1778981444000,-306.36596259,0.00030584,2]
[422475765,1778981444000,-550.0,0.00030589,7]
[422475749,1778981444000,-11261.30402881,0.00030243,2]
[422475762,1778981444000,-309.14468886,0.00030584,7]
[422475768,1778981444000,-550.0,0.00030589,7]
[422475778,1778981444000,-169.97,0.00030799,120]
[422475771,1778981444000,-550.0,0.00030589,7]
[422475772,1778981444000,-484.0,0.00030589,7]
[422475769,1778981444000,-550.0,0.00030589,7]
[422475774,1778981444000,-200.0,0.00030742,2]
[422475767,1778981444000,-550.0,0.00030589,7]
[422475770,1778981444000,-550.0,0.00030589,7]
[422475773,1778981444000,-841.03,0.000306,7]
[422475775,1778981444000,-200.0,0.00030742,2]
[422475776,1778981444000,-200.0,0.00030742,2]
[422475720,1778981444000,-774.27892594,0.000301,2]
[422475766,1778981444000,-550.0,0.00030589,7]
[422475752,1778981444000,-200.0,0.00030437,2]
[422475777,1778981444000,-200.0,0.00030742,2]
[422475750,1778981444000,-514.0,0.00030341,5]
[422475723,1778981444000,-2000.0,0.00030136,2]
[422475724,1778981444000,-200.0,0.00030136,2]
[422475728,1778981444000,-407.65,0.00030137,2]
[422475726,1778981444000,-200.0,0.00030136,2]
[422475725,1778981444000,-200.0,0.00030136,2]
[422475722,1778981444000,-774.27892593,0.000301,2]
[422475729,1778981444000,-200.0,0.00030137,2]
[422475746,1778981444000,-1801.62,0.000302,2]
[422475727,1778981444000,-200.0,0.00030136,2]
[422475731,1778981444000,-550.0,0.00030137,30]
[422475733,1778981444000,-550.0,0.00030137,30]
[422475732,1778981444000,-550.0,0.00030137,30]
[422475735,1778981444000,-268.0,0.00030137,30]
[422475730,1778981444000,-550.0,0.00030137,30]
[422475734,1778981444000,-550.0,0.00030137,30]
[422475748,1778981444000,-381.2,0.00030239,2]
[422475736,1778981444000,-150.0,0.00030137,30]
[422475747,1778981444000,-527.460438,0.000302,2]
[422475745,1778981444000,-154.0,0.00030161,30]
[422475744,1778981444000,-157.0,0.00030161,30]
[422475743,1778981444000,-152.0,0.00030161,30]
[422475751,1778981444000,-200.0,0.00030437,2]
[422475738,1778981444000,-152.0,0.00030157,30]
[422475739,1778981444000,-151.0,0.00030157,30]
[422475740,1778981444000,-151.0,0.00030157,30]
[422475742,1778981444000,-403.0,0.00030157,30]
[422475737,1778981444000,-154.21,0.00030137,120]
[422475741,1778981444000,-274.0,0.00030157,30]
[422475813,1778981445000,-605.0,0.00031161,30]
[422475817,1778981445000,-200.0,0.0003136,2]
[422475828,1778981445000,-173.94009359,0.00031491,7]
[422475818,1778981445000,-200.0,0.0003136,2]
[422475808,1778981445000,-850.0,0.00031161,30]
[422475809,1778981445000,-850.0,0.00031161,30]
[422475815,1778981445000,-14704.49757915,0.00031255,2]
[422475812,1778981445000,-850.0,0.00031161,30]
[422475814,1778981445000,-160.0,0.000312,7]
[422475816,1778981445000,-200.0,0.0003136,2]
[422475811,1778981445000,-850.0,0.00031161,30]
[422475830,1778981445000,-262.33542854,0.00031491,7]
[422475832,1778981445000,-204.48407923,0.00031491,7]
[422475821,1778981445000,-318.23414683,0.0003149,7]
[422475824,1778981445000,-504.66237309,0.00031491,7]
[422475819,1778981445000,-200.0,0.0003136,2]
[422475822,1778981445000,-317.63645987,0.0003149,7]
[422475820,1778981445000,-514.0,0.00031409,6]
[422475827,1778981445000,-226.40460047,0.00031491,7]
[422475825,1778981445000,-248.18147068,0.00031491,7]
[422475823,1778981445000,-241.24251113,0.00031491,7]
[422475826,1778981445000,-453.92956233,0.00031491,7]
[422475831,1778981445000,-259.70975591,0.00031491,7]
[422475834,1778981445000,-200.25692844,0.00031491,7]
[422475810,1778981445000,-850.0,0.00031161,30]
[422475829,1778981445000,-530.99436886,0.00031491,7]
[422475807,1778981445000,-267.0,0.00031161,30]
[422475786,1778981445000,-200.0,0.00031049,2]
[422475805,1778981445000,-150.0,0.00031161,30]
[422475843,1778981445000,-550.0,0.00031507,30]
[422475779,1778981445000,-514.0,0.00030875,6]
[422475780,1778981445000,-5156.68065549,0.000309,2]
[422475781,1778981445000,-215.03962261,0.00031,7]
[422475793,1778981445000,-927.0,0.0003113,2]
[422475784,1778981445000,-200.0,0.00031049,2]
[422475782,1778981445000,-150.0,0.00031011,2]
[422475785,1778981445000,-200.0,0.00031049,2]
[422475783,1778981445000,-200.0,0.00031049,2]
[422475794,1778981445000,-626.588,0.0003113,2]
[422475792,1778981445000,-3543.0,0.0003113,2]
[422475789,1778981445000,-150.0,0.0003113,2]
[422475806,1778981445000,-150.0,0.00031161,30]
[422475788,1778981445000,-223.42,0.00031096,2]
[422475790,1778981445000,-1270.0,0.0003113,2]
[422475791,1778981445000,-1223.0,0.0003113,2]
[422475796,1778981445000,-152.0,0.00031157,30]
[422475795,1778981445000,-152.0,0.00031135,4]
[422475797,1778981445000,-151.0,0.00031157,30]
[422475801,1778981445000,-152.0,0.00031161,30]
[422475803,1778981445000,-154.0,0.00031161,30]
[422475800,1778981445000,-403.0,0.00031157,30]
[422475799,1778981445000,-274.0,0.00031157,30]
[422475802,1778981445000,-157.0,0.00031161,30]
[422475798,1778981445000,-151.0,0.00031157,30]
[422475804,1778981445000,-150.0,0.00031161,30]
[422475787,1778981445000,-200.0,0.00031096,2]
[422475835,1778981445000,-459.54894389,0.00031491,2]
[422475840,1778981445000,-3009.89,0.00031507,30]
[422475833,1778981445000,-289.09716566,0.00031491,7]
[422475867,1778981445000,-476.4546898,0.00032095,7]
[422475871,1778981445000,-214.76054842,0.00032096,7]
[422475870,1778981445000,-232.65099278,0.00032096,2]
[422475873,1778981445000,-180.70414806,0.00032096,7]
[422475872,1778981445000,-496.36294136,0.00032096,7]
[422475874,1778981445000,-162.26913068,0.00032096,7]
[422475875,1778981445000,-333.91511921,0.00032096,7]
[422475876,1778981445000,-605.23941644,0.00032096,7]
[422475879,1778981445000,-157.44591693,0.00032096,7]
[422475878,1778981445000,-158.43826638,0.00032096,7]
[422475877,1778981445000,-170.33166223,0.00032096,7]
[422475883,1778981445000,-524.67085707,0.00032096,7]
[422475863,1778981445000,-477.35122024,0.00032095,7]
[422475885,1778981445000,-263.90649912,0.00032096,2]
[422475882,1778981445000,-352.19062219,0.00032096,7]
[422475884,1778981445000,-519.41951183,0.00032096,7]
[422475881,1778981445000,-707.99249181,0.00032096,7]
[422475880,1778981445000,-249.34276348,0.00032096,7]
[422475887,1778981445000,-578.19433132,0.00032096,7]
[422475889,1778981445000,-211.15173831,0.00032096,5]
[422475888,1778981445000,-400.51385687,0.00032096,7]
[422475890,1778981445000,-612.73192518,0.00032096,2]
[422475837,1778981445000,-164.68699442,0.00031491,7]
[422475892,1778981445000,-618.28937773,0.00032096,7]
[422475894,1778981445000,-192.60373668,0.00032096,7]
[422475893,1778981445000,-351.05400467,0.00032096,7]
[422475886,1778981445000,-408.96815846,0.00032096,7]
[422475866,1778981445000,-205.02579286,0.00032095,7]
[422475891,1778981445000,-347.88018718,0.00032096,7]
[422475864,1778981445000,-196.41253023,0.00032095,7]
[422475862,1778981445000,-229.15800551,0.00032095,7]
[422475842,1778981445000,-550.0,0.00031507,30]
[422475838,1778981445000,-166.66666667,0.00031498,7]
[422475839,1778981445000,-1000.0,0.000315,7]
[422475841,1778981445000,-225.0,0.00031507,30]
[422475845,1778981445000,-550.0,0.00031507,30]
[422475855,1778981445000,-3350.0,0.00031507,30]
[422475849,1778981445000,-700.0,0.00031507,30]
[422475846,1778981445000,-550.0,0.00031507,30]
[422475856,1778981445000,-3350.0,0.00031507,30]
[422475844,1778981445000,-550.0,0.00031507,30]
[422475847,1778981445000,-511.0,0.00031507,30]
[422475850,1778981445000,-700.0,0.00031507,30]
[422475836,1778981445000,-463.71703329,0.00031491,7]
[422475854,1778981445000,-3350.0,0.00031507,30]
[422475852,1778981445000,-700.0,0.00031507,30]
[422475869,1778981445000,-672.88316412,0.00032096,7]
[422475868,1778981445000,-182.01166614,0.00032096,7]
[422475858,1778981445000,-717.32641621,0.00031859,2]
[422475860,1778981445000,-514.0,0.00031943,7]
[422475861,1778981445000,-200.0,0.00032055,2]
[422475857,1778981445000,-3212.0,0.00031507,30]
[422475851,1778981445000,-700.0,0.00031507,30]
[422475859,1778981445000,-841.03,0.000319,7]
[422475865,1778981445000,-339.61857189,0.00032095,7]
[422475848,1778981445000,-700.0,0.00031507,30]
[422475853,1778981445000,-465.0,0.00031507,30]
[422475938,1778981446000,-151.0,0.00033157,30]
[422475920,1778981446000,-152.0,0.00032811,5]
[422475919,1778981446000,-772.86172216,0.000327,7]
[422475922,1778981446000,-358.749208,0.00032877,7]
[422475925,1778981446000,-358.749208,0.00032877,7]
[422475929,1778981446000,-2212.7951261,0.00032903,2]
[422475935,1778981446000,-841.03,0.000331,30]
[422475895,1778981446000,-329.37398885,0.00032096,7]
[422475928,1778981446000,-3939.93,0.00032877,30]
[422475921,1778981446000,-180.48177615,0.00032876,9]
[422475923,1778981446000,-358.749208,0.00032877,7]
[422475931,1778981446000,-150.0,0.00033,14]
[422475936,1778981446000,-152.0,0.00033157,30]
[422475932,1778981446000,-514.0,0.00033011,8]
[422475930,1778981446000,-1660.84162462,0.00033,5]
[422475934,1778981446000,-500.0,0.00033068,120]
[422475933,1778981446000,-350.0,0.00033014,5]
[422475939,1778981446000,-274.0,0.00033157,30]
[422475941,1778981446000,-152.0,0.00033161,30]
[422475940,1778981446000,-403.0,0.00033157,30]
[422475943,1778981446000,-160.0,0.000332,16]
[422475926,1778981446000,-407.65,0.00032877,2]
[422475937,1778981446000,-151.0,0.00033157,30]
[422475924,1778981446000,-358.749208,0.00032877,7]
[422475910,1778981446000,-160.0,0.000322,12]
[422475927,1778981446000,-1922.97,0.00032877,30]
[422475897,1778981446000,-159.75683485,0.00032105,7]
[422475896,1778981446000,-333.33333333,0.00032103,7]
[422475899,1778981446000,-152.0,0.00032157,30]
[422475898,1778981446000,-228.0,0.00032139,120]
[422475900,1778981446000,-151.0,0.00032157,30]
[422475901,1778981446000,-151.0,0.00032157,30]
[422475903,1778981446000,-403.0,0.00032157,30]
[422475902,1778981446000,-274.0,0.00032157,30]
[422475904,1778981446000,-152.0,0.00032161,30]
[422475905,1778981446000,-387.0,0.00032161,30]
[422475918,1778981446000,-765.91490648,0.000327,2]
[422475915,1778981446000,-841.10395515,0.000327,7]
[422475906,1778981446000,-250.0,0.00032161,30]
[422475909,1778981446000,-230.0,0.00032161,30]
[422475907,1778981446000,-250.0,0.00032161,30]
[422475913,1778981446000,-514.0,0.00032477,7]
[422475908,1778981446000,-250.0,0.00032161,30]
[422475912,1778981446000,-163.209782,0.00032243,12]
[422475911,1778981446000,-381.2,0.0003221,5]
[422475917,1778981446000,-884.99061476,0.000327,7]
[422475916,1778981446000,-756.54927054,0.000327,7]
[422475950,1778981446000,-5156.68065549,0.00033533,2]
[422475914,1778981446000,-150.0,0.00032562,2]
[422475944,1778981446000,-167.355,0.00033287,17]
[422475959,1778981446000,-194619.42616644,0.00033856,6]
[422475945,1778981446000,-150.0,0.00033425,2]
[422475977,1778981446000,-151.0,0.00033856,7]
[422475989,1778981446000,-151.0,0.00033856,7]
[422475988,1778981446000,-151.0,0.00033856,7]
[422475981,1778981446000,-151.0,0.00033856,7]
[422475979,1778981446000,-151.0,0.00033856,7]
[422475983,1778981446000,-358.749208,0.00033856,7]
[422475984,1778981446000,-358.749208,0.00033856,7]
[422475985,1778981446000,-358.749208,0.00033856,7]
[422475982,1778981446000,-151.0,0.00033856,7]
[422475980,1778981446000,-151.0,0.00033856,7]
[422475978,1778981446000,-151.0,0.00033856,7]
[422475986,1778981446000,-358.749208,0.00033856,7]
[422475990,1778981446000,-227.431363,0.00033856,7]
[422475992,1778981446000,-227.431363,0.00033856,7]
[422475993,1778981446000,-227.431363,0.00033856,7]
[422475995,1778981446000,-639.525189,0.00033856,7]
[422475994,1778981446000,-639.525189,0.00033856,7]
[422475996,1778981446000,-639.525189,0.00033856,7]
[422475991,1778981446000,-227.431363,0.00033856,7]
[422475998,1778981446000,-165.309745,0.00033856,7]
[422475997,1778981446000,-639.525189,0.00033856,7]
[422475948,1778981446000,-150.0,0.00033425,2]
[422475987,1778981446000,-151.0,0.00033856,7]
[422475971,1778981446000,-300.0,0.00033856,5]
[422475969,1778981446000,-370.952959,0.00033856,7]
[422475972,1778981446000,-300.0,0.00033856,5]
[422475973,1778981446000,-300.0,0.00033856,5]
[422475947,1778981446000,-150.0,0.00033425,2]
[422475946,1778981446000,-150.0,0.00033425,2]
[422475949,1778981446000,-193.0,0.00033425,2]
[422475952,1778981446000,-1009.32474618,0.00033607,7]
[422475964,1778981446000,-151.0,0.00033856,7]
[422475962,1778981446000,-151.0,0.00033856,7]
[422475963,1778981446000,-151.0,0.00033856,7]
[422475954,1778981446000,-919.09788777,0.00033607,2]
[422475951,1778981446000,-514.0,0.00033545,9]
[422475955,1778981446000,-927.43406659,0.00033607,7]
[422475953,1778981446000,-1061.98873772,0.00033607,7]
[422475958,1778981446000,-209.84219478,0.00033842,2]
[422475956,1778981446000,-167.62577953,0.00033685,2]
[422475970,1778981446000,-300.0,0.00033856,5]
[422475974,1778981446000,-300.0,0.00033856,5]
[422475968,1778981446000,-370.952959,0.00033856,7]
[422475976,1778981446000,-151.0,0.00033856,7]
[422475975,1778981446000,-165.407147,0.00033856,7]
[422475966,1778981446000,-370.952959,0.00033856,7]
[422475965,1778981446000,-151.0,0.00033856,7]
[422475961,1778981446000,-541236.1537489,0.00033856,2]
[422475957,1778981446000,-7340.87522214,0.00033756,2]
[422475967,1778981446000,-370.952959,0.00033856,7]
[422476008,1778981447000,-151.0,0.00033856,3]
[422476013,1778981447000,-152.244038,0.00033856,3]
[422476016,1778981447000,-151.0,0.00033856,7]
[422476027,1778981447000,-514.0,0.00034079,9]
[422476026,1778981447000,-11261.30402881,0.00034029,2]
[422476019,1778981447000,-151.0,0.00033856,7]
[422476020,1778981447000,-7730.07,0.000339,14]
[422476017,1778981447000,-151.0,0.00033856,7]
[422476018,1778981447000,-151.0,0.00033856,7]
[422476021,1778981447000,-596.61,0.000339,7]
[422476015,1778981447000,-151.0,0.00033856,7]
[422476010,1778981447000,-151.0,0.00033856,3]
[422476001,1778981447000,-251.850908,0.00033856,7]
[422476012,1778981447000,-151.0,0.00033856,3]
[422476011,1778981447000,-151.0,0.00033856,3]
[422476007,1778981447000,-151.0,0.00033856,3]
[422476006,1778981447000,-1783.980716,0.00033856,7]
[422476003,1778981447000,-1783.980716,0.00033856,7]
[422476014,1778981447000,-151.0,0.00033856,7]
[422476004,1778981447000,-1783.980716,0.00033856,7]
[422476000,1778981447000,-251.850908,0.00033856,7]
[422475999,1778981447000,-251.850908,0.00033856,7]
[422476002,1778981447000,-251.850908,0.00033856,7]
[422476023,1778981447000,-281.44,0.000339,120]
[422476009,1778981447000,-151.0,0.00033856,3]
[422476022,1778981447000,-2100.0,0.000339,12]
[422476005,1778981447000,-1783.980716,0.00033856,7]
[422476024,1778981447000,-14704.49757915,0.00033969,2]